[Event "Titled Tuesday Blitz February 14 Early 2023"]
[White "Kanyamarala, Trisha"]
[Black "Berezin, Viktor"]
[WhiteFideId "45004722"]
[BlackFideId "14107872"]
[WhiteElo "2278"]
[BlackElo "2307"]
[Result "1-0"]
[Round "06"]
[TimeControl "180+2"]
[Date "2023.02.15"]
[WhiteClock "0:00:04"]
[BlackClock "0:00:05"]

1. c4 {[%clk 0:03:00]}  Nf6 {[%clk 0:03:00]} 2. Nc3 {[%clk 0:02:57]}  g6 {[%clk 0:03:00]} 3. Nf3 {[%clk 0:02:57]}  Bg7 {[%clk 0:03:00]} 4. g3 {[%clk 0:02:57]}  O-O {[%clk 0:03:01]} 5. Bg2 {[%clk 0:02:58]}  d6 {[%clk 0:03:01]} 6. O-O {[%clk 0:02:58]}  Nc6 {[%clk 0:03:02]} 7. d4 {[%clk 0:02:58]}  a6 {[%clk 0:03:01]} 8. d5 {[%clk 0:02:57]}  Na5 {[%clk 0:03:01]} 9. Nd2 {[%clk 0:02:54]}  c5 {[%clk 0:03:01]} 10. e4 {[%clk 0:02:54]}  Rb8 {[%clk 0:03:01]} 11. a4 {[%clk 0:02:44]}  e5 {[%clk 0:02:59]} 12. f4 {[%clk 0:02:38]}  Ng4 {[%clk 0:02:49]} 13. Nf3 {[%clk 0:02:35]}  exf4 {[%clk 0:02:42]} 14. Bxf4 {[%clk 0:02:33]}  Nxc4 {[%clk 0:02:42]} 15. Qe2 {[%clk 0:02:29]}  Nge5 {[%clk 0:02:37]} 16. b3 {[%clk 0:02:17]}  Nxf3+ {[%clk 0:02:34]} 17. Rxf3 {[%clk 0:02:15]}  Ne5 {[%clk 0:02:34]} 18. Rff1 {[%clk 0:02:15]}  Bg4 {[%clk 0:02:32]} 19. Qd2 {[%clk 0:02:14]}  Qd7 {[%clk 0:02:29]} 20. a5 {[%clk 0:02:10]}  Bh3 {[%clk 0:02:22]} 21. Na4 {[%clk 0:02:05]}  Bxg2 {[%clk 0:02:14]} 22. Kxg2 {[%clk 0:02:03]}  Qb5 {[%clk 0:02:12]} 23. Rab1 {[%clk 0:01:56]}  Rbe8 {[%clk 0:01:58]} 24. Nb6 {[%clk 0:01:51]}  f5 {[%clk 0:01:47]} 25. exf5 {[%clk 0:01:47]}  Rxf5 {[%clk 0:01:47]} 26. Rfe1 {[%clk 0:01:38]}  Ref8 {[%clk 0:01:45]} 27. Nc4 {[%clk 0:01:32]}  Qd7 {[%clk 0:01:16]} 28. Rbc1 {[%clk 0:01:18]}  g5 {[%clk 0:01:14]} 29. Nxe5 {[%clk 0:01:10]}  dxe5 {[%clk 0:01:10]} 30. Be3 {[%clk 0:01:10]}  e4 {[%clk 0:01:02]} 31. Rxc5 {[%clk 0:01:07]}  Qf7 {[%clk 0:00:51]} 32. Qe2 {[%clk 0:00:39]}  Rxd5 {[%clk 0:00:48]} 33. Rxd5 {[%clk 0:00:31]}  Qxd5 {[%clk 0:00:49]} 34. Rd1 {[%clk 0:00:30]}  Qxb3 {[%clk 0:00:46]} 35. Bxg5 {[%clk 0:00:27]}  Qf3+ {[%clk 0:00:43]} 36. Qxf3 {[%clk 0:00:27]}  exf3+ {[%clk 0:00:42]} 37. Kf2 {[%clk 0:00:27]}  Bc3 {[%clk 0:00:38]} 38. Rd5 {[%clk 0:00:23]}  Kg7 {[%clk 0:00:27]} 39. Bf4 {[%clk 0:00:15]}  Rf7 {[%clk 0:00:19]} 40. Kxf3 {[%clk 0:00:14]}  Re7 {[%clk 0:00:17]} 41. h4 {[%clk 0:00:12]}  Bf6 {[%clk 0:00:17]} 42. h5 {[%clk 0:00:11]}  Kf7 {[%clk 0:00:17]} 43. Rd6 {[%clk 0:00:08]}  Bc3 {[%clk 0:00:13]} 44. Rh6 {[%clk 0:00:08]}  Kg7 {[%clk 0:00:12]} 45. Rd6 {[%clk 0:00:04]}  Bxa5 {[%clk 0:00:12]} 46. Bh6+ {[%clk 0:00:04]}  Kf7 {[%clk 0:00:12]} 47. Bg5 {[%clk 0:00:04]}  Rc7 {[%clk 0:00:09]} 48. Rh6 {[%clk 0:00:03]}  Kg7 {[%clk 0:00:09]} 49. Re6 {[%clk 0:00:03]}  Rf7+ {[%clk 0:00:09]} 50. Kg4 {[%clk 0:00:03]}  Bc7 {[%clk 0:00:09]} 51. h6+ {[%clk 0:00:03]}  Kg8 {[%clk 0:00:08]} 52. Bf6 {[%clk 0:00:03]}  a5 {[%clk 0:00:04]} 53. Bg7 {[%clk 0:00:04]}  Rxg7+ {[%clk 0:00:04]} 54. hxg7 {[%clk 0:00:04]}  a4 {[%clk 0:00:05]} 55. Re8+ {[%clk 0:00:04]}  Kxg7 {[%clk 0:00:04]} 56. Re7+ {[%clk 0:00:04]}  Kf6 {[%clk 0:00:05]} 57. Rxc7 {[%clk 0:00:04]}  b5 {[%clk 0:00:06]} 58. Rb7 {[%clk 0:00:04]}  Ke5 {[%clk 0:00:04]} 59. Rxb5+ {[%clk 0:00:04]}  Kf6 {[%clk 0:00:03]} 60. Ra5 {[%clk 0:00:04]}  Kg6 {[%clk 0:00:04]} 61. Rxa4 {[%clk 0:00:04]}  Kg7 {[%clk 0:00:05]} 62. Ra6 {[%clk 0:00:04]} 1-0


[Site "https://www.chess.com"]

[Event "Titled Tuesday Blitz February 14 Early 2023"]
[White "Wu, Sibo"]
[Black "Golubev, Mikhail"]
[WhiteFideId "8606048"]
[BlackFideId "14100983"]
[WhiteElo "2082"]
[BlackElo "2461"]
[Result "0-1"]
[Round "06"]
[TimeControl "180+2"]
[Date "2023.02.15"]
[WhiteClock "0:01:05"]
[BlackClock "0:00:54"]

1. d4 {[%clk 0:03:00]}  Nf6 {[%clk 0:02:59]} 2. Bf4 {[%clk 0:02:59]}  d6 {[%clk 0:02:58]} 3. Nc3 {[%clk 0:02:58]}  Nbd7 {[%clk 0:02:58]} 4. e4 {[%clk 0:02:58]}  e5 {[%clk 0:02:58]} 5. Be3 {[%clk 0:02:57]}  Be7 {[%clk 0:02:51]} 6. f3 {[%clk 0:02:50]}  O-O {[%clk 0:02:47]} 7. Qd2 {[%clk 0:02:48]}  c6 {[%clk 0:02:40]} 8. h4 {[%clk 0:02:38]}  b5 {[%clk 0:02:38]} 9. h5 {[%clk 0:02:32]}  exd4 {[%clk 0:02:23]} 10. Bxd4 {[%clk 0:02:32]}  b4 {[%clk 0:02:22]} 11. Nce2 {[%clk 0:02:31]}  c5 {[%clk 0:02:15]} 12. Be3 {[%clk 0:02:30]}  d5 {[%clk 0:02:09]} 13. exd5 {[%clk 0:02:26]}  Nb6 {[%clk 0:02:09]} 14. Nf4 {[%clk 0:02:11]}  Nfxd5 {[%clk 0:02:05]} 15. O-O-O {[%clk 0:02:06]}  Nxe3 {[%clk 0:01:57]} 16. Qxe3 {[%clk 0:02:05]}  Qc7 {[%clk 0:01:58]} 17. Nd5 {[%clk 0:01:22]}  Nxd5 {[%clk 0:01:49]} 18. Rxd5 {[%clk 0:01:23]}  Be6 {[%clk 0:01:48]} 19. Re5 {[%clk 0:01:23]}  Bd6 {[%clk 0:01:37]} 20. f4 {[%clk 0:01:04]}  f6 {[%clk 0:01:04]} 21. Rxe6 {[%clk 0:01:03]}  Bxf4 {[%clk 0:01:02]} 22. Bc4 {[%clk 0:01:04]}  Bxe3+ {[%clk 0:00:58]} 23. Rxe3+ {[%clk 0:01:05]}  Kh8 {[%clk 0:00:58]} 24. Nf3 {[%clk 0:01:05]}  Qf4 {[%clk 0:00:54]} 0-1


[Site "https://www.chess.com"]

[Event "Titled Tuesday Blitz February 14 Early 2023"]
[White "Kulkarni, Vikramaditya"]
[Black "Alinasab, Mobina"]
[WhiteFideId "5009847"]
[BlackFideId "12528897"]
[WhiteElo "2251"]
[BlackElo "2347"]
[Result "0-1"]
[Round "06"]
[TimeControl "180+2"]
[Date "2023.02.15"]
[WhiteClock "0:00:03"]
[BlackClock "0:00:02"]

1. d4 {[%clk 0:03:00]}  Nf6 {[%clk 0:02:59]} 2. Nf3 {[%clk 0:02:59]}  e6 {[%clk 0:02:58]} 3. c4 {[%clk 0:02:56]}  b6 {[%clk 0:02:58]} 4. a3 {[%clk 0:02:54]}  Bb7 {[%clk 0:02:54]} 5. Nc3 {[%clk 0:02:54]}  d5 {[%clk 0:02:54]} 6. Qa4+ {[%clk 0:02:52]}  Nbd7 {[%clk 0:02:52]} 7. cxd5 {[%clk 0:02:49]}  exd5 {[%clk 0:02:52]} 8. Bg5 {[%clk 0:02:48]}  Be7 {[%clk 0:02:43]} 9. Ne5 {[%clk 0:02:45]}  O-O {[%clk 0:02:34]} 10. Nc6 {[%clk 0:02:44]}  Qe8 {[%clk 0:02:12]} 11. Nxe7+ {[%clk 0:02:27]}  Qxe7 {[%clk 0:02:13]} 12. e3 {[%clk 0:02:24]}  h6 {[%clk 0:01:59]} 13. Bh4 {[%clk 0:02:22]}  c5 {[%clk 0:01:58]} 14. Bb5 {[%clk 0:02:09]}  g5 {[%clk 0:01:46]} 15. Bg3 {[%clk 0:02:05]}  a6 {[%clk 0:01:44]} 16. Bxd7 {[%clk 0:01:54]}  Nxd7 {[%clk 0:01:45]} 17. h4 {[%clk 0:01:47]}  b5 {[%clk 0:01:40]} 18. Qd1 {[%clk 0:01:46]}  Kg7 {[%clk 0:01:16]} 19. dxc5 {[%clk 0:01:36]}  Nxc5 {[%clk 0:01:01]} 20. Qd4+ {[%clk 0:01:35]}  f6 {[%clk 0:00:57]} 21. hxg5 {[%clk 0:01:22]}  hxg5 {[%clk 0:00:58]} 22. Ke2 {[%clk 0:01:19]}  Rh8 {[%clk 0:00:43]} 23. Rad1 {[%clk 0:00:58]}  Ne6 {[%clk 0:00:25]} 24. Qb6 {[%clk 0:00:42]}  d4 {[%clk 0:00:22]} 25. Bd6 {[%clk 0:00:40]}  Qd7 {[%clk 0:00:12]} 26. exd4 {[%clk 0:00:37]}  Rae8 {[%clk 0:00:08]} 27. Rxh8 {[%clk 0:00:36]}  Kxh8 {[%clk 0:00:07]} 28. Rh1+ {[%clk 0:00:33]}  Kg7 {[%clk 0:00:07]} 29. Kf1 {[%clk 0:00:31]}  Ba8 {[%clk 0:00:05]} 30. d5 {[%clk 0:00:30]}  Nf4 {[%clk 0:00:05]} 31. Bxf4 {[%clk 0:00:24]}  gxf4 {[%clk 0:00:06]} 32. Qd4 {[%clk 0:00:12]}  Qf5 {[%clk 0:00:06]} 33. Qd1 {[%clk 0:00:12]}  f3 {[%clk 0:00:02]} 34. Qxf3 {[%clk 0:00:12]}  Qxf3 {[%clk 0:00:03]} 35. gxf3 {[%clk 0:00:12]}  Re5 {[%clk 0:00:02]} 36. Rh4 {[%clk 0:00:09]}  Bxd5 {[%clk 0:00:01]} 37. Rd4 {[%clk 0:00:09]}  Be6 {[%clk 0:00:01]} 38. f4 {[%clk 0:00:08]}  Rf5 {[%clk 0:00:01]} 39. Ke2 {[%clk 0:00:07]}  Bc4+ {[%clk 0:00:01]} 40. Kf3 {[%clk 0:00:07]}  a5 {[%clk 0:00:02]} 41. Rd7+ {[%clk 0:00:05]}  Kg6 {[%clk 0:00:02]} 42. Ne4 {[%clk 0:00:03]}  Rd5 {[%clk 0:00:02]} 0-1


[Site "https://www.chess.com"]

[Event "Titled Tuesday Blitz February 14 Early 2023"]
[White "Rian, Kapriaga"]
[Black "Raahul V S"]
[WhiteFideId "7103263"]
[BlackFideId "25035525"]
[WhiteElo "2089"]
[BlackElo "2299"]
[Result "1-0"]
[Round "06"]
[TimeControl "180+2"]
[Date "2023.02.15"]
[WhiteClock "0:00:52"]
[BlackClock "0:01:05"]

1. d4 {[%clk 0:03:00]}  d5 {[%clk 0:02:59]} 2. Nf3 {[%clk 0:03:00]}  Nf6 {[%clk 0:02:58]} 3. Bf4 {[%clk 0:03:00]}  c5 {[%clk 0:02:55]} 4. e3 {[%clk 0:02:59]}  Bg4 {[%clk 0:02:56]} 5. Nbd2 {[%clk 0:02:57]}  a6 {[%clk 0:02:52]} 6. Be2 {[%clk 0:02:55]}  e6 {[%clk 0:02:52]} 7. h3 {[%clk 0:02:54]}  Bh5 {[%clk 0:02:50]} 8. c3 {[%clk 0:02:52]}  Nbd7 {[%clk 0:02:49]} 9. O-O {[%clk 0:02:50]}  Be7 {[%clk 0:02:48]} 10. a3 {[%clk 0:02:43]}  O-O {[%clk 0:02:47]} 11. b4 {[%clk 0:02:42]}  cxd4 {[%clk 0:02:30]} 12. cxd4 {[%clk 0:02:41]}  b5 {[%clk 0:02:28]} 13. Rc1 {[%clk 0:02:37]}  Nb6 {[%clk 0:02:27]} 14. Bc7 {[%clk 0:02:35]}  Nc4 {[%clk 0:02:07]} 15. Bxd8 {[%clk 0:02:32]}  Rfxd8 {[%clk 0:02:08]} 16. Nxc4 {[%clk 0:02:21]}  dxc4 {[%clk 0:02:08]} 17. Ne5 {[%clk 0:02:16]}  Bxe2 {[%clk 0:02:07]} 18. Qxe2 {[%clk 0:02:16]}  Rdc8 {[%clk 0:02:04]} 19. Nxc4 {[%clk 0:01:59]}  bxc4 {[%clk 0:02:00]} 20. Rxc4 {[%clk 0:01:59]}  Rcb8 {[%clk 0:01:56]} 21. Rfc1 {[%clk 0:01:53]}  Nd5 {[%clk 0:01:49]} 22. e4 {[%clk 0:01:45]}  Nf4 {[%clk 0:01:45]} 23. Qf3 {[%clk 0:01:44]}  e5 {[%clk 0:01:45]} 24. dxe5 {[%clk 0:01:35]}  Ne6 {[%clk 0:01:44]} 25. g3 {[%clk 0:01:25]}  h6 {[%clk 0:01:37]} 26. h4 {[%clk 0:01:25]}  a5 {[%clk 0:01:37]} 27. Rc7 {[%clk 0:01:21]}  Nxc7 {[%clk 0:01:31]} 28. Rxc7 {[%clk 0:01:20]}  Re8 {[%clk 0:01:19]} 29. b5 {[%clk 0:01:19]}  a4 {[%clk 0:01:11]} 30. b6 {[%clk 0:01:17]}  Rac8 {[%clk 0:01:06]} 31. Rxc8 {[%clk 0:01:08]}  Rxc8 {[%clk 0:01:05]} 32. b7 {[%clk 0:00:54]}  Rb8 {[%clk 0:01:05]} 33. Qc3 {[%clk 0:00:52]} 1-0


[Site "https://www.chess.com"]

[Event "Titled Tuesday Blitz February 14 Early 2023"]
[White "Kielinkei"]
[Black "Gimenez Aguirre, Alejo Ismael"]
[BlackFideId "32041667"]
[WhiteElo "2360"]
[BlackElo "2273"]
[Result "0-1"]
[Round "06"]
[TimeControl "180+2"]
[Date "2023.02.15"]
[WhiteClock "0:00:13"]
[BlackClock "0:02:03"]

1. Nf3 {[%clk 0:03:00]}  d5 {[%clk 0:02:59]} 2. g3 {[%clk 0:02:59]}  c6 {[%clk 0:03:00]} 3. Bg2 {[%clk 0:02:59]}  Nd7 {[%clk 0:03:00]} 4. d4 {[%clk 0:02:59]}  g6 {[%clk 0:03:00]} 5. O-O {[%clk 0:02:58]}  Bg7 {[%clk 0:03:01]} 6. c3 {[%clk 0:02:51]}  e5 {[%clk 0:03:01]} 7. dxe5 {[%clk 0:02:50]}  Nxe5 {[%clk 0:03:01]} 8. Nxe5 {[%clk 0:02:50]}  Bxe5 {[%clk 0:03:01]} 9. e4 {[%clk 0:02:50]}  d4 {[%clk 0:02:55]} 10. f4 {[%clk 0:02:43]}  Bg7 {[%clk 0:02:55]} 11. e5 {[%clk 0:02:42]}  c5 {[%clk 0:02:40]} 12. cxd4 {[%clk 0:02:33]}  cxd4 {[%clk 0:02:39]} 13. Qa4+ {[%clk 0:02:26]}  Qd7 {[%clk 0:02:28]} 14. Qxd7+ {[%clk 0:02:24]}  Bxd7 {[%clk 0:02:29]} 15. Bxb7 {[%clk 0:02:24]}  Rb8 {[%clk 0:02:29]} 16. Be4 {[%clk 0:02:21]}  f6 {[%clk 0:02:30]} 17. exf6 {[%clk 0:02:00]}  Nxf6 {[%clk 0:02:31]} 18. Bd3 {[%clk 0:02:01]}  O-O {[%clk 0:02:30]} 19. Nd2 {[%clk 0:01:58]}  Rfe8 {[%clk 0:02:26]} 20. Nb3 {[%clk 0:01:55]}  Bh3 {[%clk 0:02:25]} 21. Rd1 {[%clk 0:01:51]}  Bg4 {[%clk 0:02:25]} 22. Rd2 {[%clk 0:01:42]}  Re1+ {[%clk 0:02:17]} 23. Kf2 {[%clk 0:01:41]}  Rbe8 {[%clk 0:02:11]} 24. Nxd4 {[%clk 0:01:15]}  Bh3 {[%clk 0:02:11]} 25. g4 {[%clk 0:00:24]}  R8e3 {[%clk 0:02:05]} 26. Bc4+ {[%clk 0:00:13]}  Kh8 {[%clk 0:02:03]} 0-1


[Site "https://www.chess.com"]

[Event "Titled Tuesday Blitz February 14 Early 2023"]
[White "Pourkashiyan, Atousa"]
[Black "Filgueira, Hernan"]
[WhiteFideId "12502014"]
[BlackFideId "101770"]
[WhiteElo "2282"]
[BlackElo "2283"]
[Result "1/2-1/2"]
[Round "06"]
[TimeControl "180+2"]
[Date "2023.02.15"]
[WhiteClock "0:00:15"]
[BlackClock "0:00:29"]

1. e4 {[%clk 0:03:00]}  d6 {[%clk 0:02:57]} 2. d4 {[%clk 0:02:50]}  Nf6 {[%clk 0:01:39]} 3. Nc3 {[%clk 0:02:45]}  c6 {[%clk 0:01:39]} 4. a4 {[%clk 0:02:45]}  a5 {[%clk 0:01:38]} 5. Nf3 {[%clk 0:02:45]}  Bg4 {[%clk 0:01:38]} 6. Be2 {[%clk 0:02:44]}  e6 {[%clk 0:01:38]} 7. O-O {[%clk 0:02:44]}  d5 {[%clk 0:01:38]} 8. e5 {[%clk 0:02:38]}  Nfd7 {[%clk 0:01:38]} 9. Ng5 {[%clk 0:02:32]}  Bf5 {[%clk 0:01:36]} 10. Bh5 {[%clk 0:02:27]}  Bg6 {[%clk 0:01:31]} 11. Bxg6 {[%clk 0:02:05]}  hxg6 {[%clk 0:01:31]} 12. Qg4 {[%clk 0:02:05]}  Qe7 {[%clk 0:01:30]} 13. Nf3 {[%clk 0:02:00]}  Qb4 {[%clk 0:01:21]} 14. Ng5 {[%clk 0:01:41]}  Qe7 {[%clk 0:01:17]} 15. Bd2 {[%clk 0:01:37]}  Na6 {[%clk 0:01:16]} 16. Ne2 {[%clk 0:01:30]}  Nc7 {[%clk 0:01:15]} 17. Nf4 {[%clk 0:01:27]}  b6 {[%clk 0:01:07]} 18. Ra3 {[%clk 0:01:27]}  O-O-O {[%clk 0:01:04]} 19. Rc3 {[%clk 0:01:10]}  Kb7 {[%clk 0:01:04]} 20. Nd3 {[%clk 0:01:00]}  Qe8 {[%clk 0:01:03]} 21. Rb3 {[%clk 0:00:56]}  Ka7 {[%clk 0:01:00]} 22. Qf3 {[%clk 0:00:50]}  f6 {[%clk 0:00:57]} 23. Nh3 {[%clk 0:00:47]}  g5 {[%clk 0:00:56]} 24. Re1 {[%clk 0:00:42]}  Qh5 {[%clk 0:00:49]} 25. Qxh5 {[%clk 0:00:28]}  Rxh5 {[%clk 0:00:49]} 26. f3 {[%clk 0:00:28]}  Be7 {[%clk 0:00:45]} 27. Nhf2 {[%clk 0:00:28]}  f5 {[%clk 0:00:42]} 28. h3 {[%clk 0:00:28]}  Rhh8 {[%clk 0:00:41]} 29. Rc1 {[%clk 0:00:25]}  Rc8 {[%clk 0:00:40]} 30. c4 {[%clk 0:00:25]}  dxc4 {[%clk 0:00:40]} 31. Rxc4 {[%clk 0:00:25]}  Nd5 {[%clk 0:00:40]} 32. Nd1 {[%clk 0:00:21]}  c5 {[%clk 0:00:39]} 33. dxc5 {[%clk 0:00:18]}  Nxc5 {[%clk 0:00:38]} 34. Nxc5 {[%clk 0:00:18]}  Rxc5 {[%clk 0:00:38]} 35. Rxc5 {[%clk 0:00:17]}  Bxc5+ {[%clk 0:00:38]} 36. Kf1 {[%clk 0:00:18]}  f4 {[%clk 0:00:39]} 37. Nc3 {[%clk 0:00:18]}  Nxc3 {[%clk 0:00:37]} 38. Rxc3 {[%clk 0:00:17]}  Rd8 {[%clk 0:00:37]} 39. Rc2 {[%clk 0:00:17]}  Rd4 {[%clk 0:00:35]} 40. b3 {[%clk 0:00:17]}  Ka6 {[%clk 0:00:34]} 41. Ke2 {[%clk 0:00:17]}  Rd5 {[%clk 0:00:33]} 42. Bc3 {[%clk 0:00:17]}  Kb7 {[%clk 0:00:32]} 43. Rd2 {[%clk 0:00:17]}  Kc6 {[%clk 0:00:32]} 44. Rxd5 {[%clk 0:00:16]}  Kxd5 {[%clk 0:00:33]} 45. Kd3 {[%clk 0:00:17]}  g6 {[%clk 0:00:32]} 46. Bb2 {[%clk 0:00:17]}  Bb4 {[%clk 0:00:32]} 47. Bd4 {[%clk 0:00:17]}  Bc5 {[%clk 0:00:31]} 48. Bb2 {[%clk 0:00:15]}  Bf8 {[%clk 0:00:30]} 49. Bd4 {[%clk 0:00:15]}  Bc5 {[%clk 0:00:29]} 50. Bb2 {[%clk 0:00:15]} 1/2-1/2


[Site "https://www.chess.com"]

[Event "Titled Tuesday Blitz February 14 Early 2023"]
[White "Jimenez Garcia, Emmanuel"]
[Black "Sekar, B"]
[WhiteFideId "6504779"]
[BlackFideId "5043743"]
[WhiteElo "2410"]
[BlackElo "2333"]
[Result "0-1"]
[Round "06"]
[TimeControl "180+2"]
[Date "2023.02.15"]
[WhiteClock "0:00:07"]
[BlackClock "0:00:10"]

1. Nf3 {[%clk 0:03:00]}  Nf6 {[%clk 0:02:59]} 2. b3 {[%clk 0:03:00]}  d5 {[%clk 0:02:57]} 3. Bb2 {[%clk 0:03:01]}  Bf5 {[%clk 0:02:57]} 4. g3 {[%clk 0:03:00]}  e6 {[%clk 0:02:57]} 5. Bg2 {[%clk 0:03:01]}  Be7 {[%clk 0:02:56]} 6. O-O {[%clk 0:03:02]}  O-O {[%clk 0:02:55]} 7. c4 {[%clk 0:03:03]}  c6 {[%clk 0:02:55]} 8. d3 {[%clk 0:03:03]}  h6 {[%clk 0:02:54]} 9. Nbd2 {[%clk 0:03:04]}  a5 {[%clk 0:02:54]} 10. a3 {[%clk 0:03:04]}  Nbd7 {[%clk 0:02:50]} 11. Bc3 {[%clk 0:03:05]}  Bg6 {[%clk 0:02:35]} 12. b4 {[%clk 0:02:59]}  axb4 {[%clk 0:02:35]} 13. axb4 {[%clk 0:03:00]}  Qb6 {[%clk 0:02:35]} 14. Qb3 {[%clk 0:02:53]}  dxc4 {[%clk 0:02:20]} 15. Nxc4 {[%clk 0:02:46]}  Qc7 {[%clk 0:02:19]} 16. e4 {[%clk 0:02:46]}  Rfd8 {[%clk 0:02:10]} 17. Nfe5 {[%clk 0:02:45]}  Bh7 {[%clk 0:01:55]} 18. Qb2 {[%clk 0:02:30]}  Bf8 {[%clk 0:01:49]} 19. b5 {[%clk 0:01:58]}  cxb5 {[%clk 0:01:42]} 20. Qxb5 {[%clk 0:01:57]}  Nc5 {[%clk 0:01:41]} 21. Rxa8 {[%clk 0:01:38]}  Rxa8 {[%clk 0:01:42]} 22. Rb1 {[%clk 0:01:12]}  Rc8 {[%clk 0:01:28]} 23. Ba5 {[%clk 0:01:11]}  Qe7 {[%clk 0:01:12]} 24. Bb4 {[%clk 0:01:10]}  Qd8 {[%clk 0:00:09]} 25. Bxc5 {[%clk 0:01:07]}  Bxc5 {[%clk 0:00:09]} 26. Qxb7 {[%clk 0:01:08]}  Rc7 {[%clk 0:00:09]} 27. Qb8 {[%clk 0:01:05]}  Rc8 {[%clk 0:00:09]} 28. Qb7 {[%clk 0:00:57]}  Rc7 {[%clk 0:00:09]} 29. Qb5 {[%clk 0:00:45]}  Nd7 {[%clk 0:00:09]} 30. Nxd7 {[%clk 0:00:40]}  Qxd7 {[%clk 0:00:10]} 31. Qxd7 {[%clk 0:00:39]}  Rxd7 {[%clk 0:00:11]} 32. Rb8+ {[%clk 0:00:39]}  Bf8 {[%clk 0:00:11]} 33. Ne5 {[%clk 0:00:31]}  Rc7 {[%clk 0:00:11]} 34. Bh3 {[%clk 0:00:28]}  g5 {[%clk 0:00:11]} 35. Rd8 {[%clk 0:00:22]}  Kg7 {[%clk 0:00:11]} 36. Rd7 {[%clk 0:00:21]}  Rxd7 {[%clk 0:00:11]} 37. Nxd7 {[%clk 0:00:22]}  Bd6 {[%clk 0:00:09]} 38. Nb6 {[%clk 0:00:18]}  f5 {[%clk 0:00:09]} 39. Nc4 {[%clk 0:00:18]}  Bc5 {[%clk 0:00:09]} 40. exf5 {[%clk 0:00:15]}  exf5 {[%clk 0:00:10]} 41. Kf1 {[%clk 0:00:15]}  Kf6 {[%clk 0:00:10]} 42. Ke2 {[%clk 0:00:13]}  Bg8 {[%clk 0:00:11]} 43. Ne3 {[%clk 0:00:11]}  Be6 {[%clk 0:00:10]} 44. Bg2 {[%clk 0:00:09]}  Ke5 {[%clk 0:00:09]} 45. Bb7 {[%clk 0:00:05]}  f4 {[%clk 0:00:10]} 46. Nc2 {[%clk 0:00:03]}  Bg4+ {[%clk 0:00:08]} 47. Bf3 {[%clk 0:00:03]}  Bf5 {[%clk 0:00:08]} 48. g4 {[%clk 0:00:03]}  Be6 {[%clk 0:00:07]} 49. h3 {[%clk 0:00:03]}  Bb3 {[%clk 0:00:07]} 50. d4+ {[%clk 0:00:01]}  Bxd4 {[%clk 0:00:07]} 51. Nxd4 {[%clk 0:00:02]}  Kxd4 {[%clk 0:00:08]} 52. Bb7 {[%clk 0:00:02]}  Bc4+ {[%clk 0:00:08]} 53. Kf3 {[%clk 0:00:02]}  Bf1 {[%clk 0:00:08]} 54. h4 {[%clk 0:00:02]}  Bd3 {[%clk 0:00:02]} 55. hxg5 {[%clk 0:00:02]}  hxg5 {[%clk 0:00:03]} 56. Ba8 {[%clk 0:00:02]}  Bc4 {[%clk 0:00:03]} 57. Kg2 {[%clk 0:00:02]}  Be2 {[%clk 0:00:02]} 58. Bf3 {[%clk 0:00:02]}  Kd3 {[%clk 0:00:02]} 59. Bd5 {[%clk 0:00:01]}  Kd2 {[%clk 0:00:03]} 60. Bb7 {[%clk 0:00:01]}  Ke1 {[%clk 0:00:03]} 61. f3 {[%clk 0:00:02]}  Kd2 {[%clk 0:00:03]} 62. Be4 {[%clk 0:00:03]}  Ke3 {[%clk 0:00:03]} 63. Ba8 {[%clk 0:00:03]}  Bd1 {[%clk 0:00:03]} 64. Be4 {[%clk 0:00:04]}  Bb3 {[%clk 0:00:03]} 65. Ba8 {[%clk 0:00:05]}  Be6 {[%clk 0:00:03]} 66. Bb7 {[%clk 0:00:06]}  Bd7 {[%clk 0:00:03]} 67. Bd5 {[%clk 0:00:06]}  Bc8 {[%clk 0:00:03]} 68. Ba8 {[%clk 0:00:06]}  Be6 {[%clk 0:00:03]} 69. Be4 {[%clk 0:00:06]}  Bxg4 {[%clk 0:00:03]} 70. Ba8 {[%clk 0:00:05]}  Bf5 {[%clk 0:00:03]} 71. Bb7 {[%clk 0:00:06]}  Bd3 {[%clk 0:00:03]} 72. Ba8 {[%clk 0:00:06]}  Bf5 {[%clk 0:00:03]} 73. Bb7 {[%clk 0:00:06]}  Kd4 {[%clk 0:00:04]} 74. Ba8 {[%clk 0:00:06]}  Ke5 {[%clk 0:00:04]} 75. Bb7 {[%clk 0:00:07]}  Be6 {[%clk 0:00:05]} 76. Ba8 {[%clk 0:00:07]}  Bd5 {[%clk 0:00:05]} 77. Bxd5 {[%clk 0:00:07]}  Kxd5 {[%clk 0:00:06]} 78. Kh3 {[%clk 0:00:07]}  Ke5 {[%clk 0:00:07]} 79. Kg4 {[%clk 0:00:08]}  Kf6 {[%clk 0:00:06]} 80. Kh3 {[%clk 0:00:07]}  Kf5 {[%clk 0:00:06]} 81. Kg2 {[%clk 0:00:07]}  Ke5 {[%clk 0:00:06]} 82. Kf2 {[%clk 0:00:06]}  Kd4 {[%clk 0:00:07]} 83. Ke2 {[%clk 0:00:07]}  Kc3 {[%clk 0:00:07]} 84. Ke1 {[%clk 0:00:05]}  Kd3 {[%clk 0:00:08]} 85. Kf1 {[%clk 0:00:05]}  Ke3 {[%clk 0:00:09]} 86. Kg2 {[%clk 0:00:06]}  Ke2 {[%clk 0:00:09]} 87. Kh3 {[%clk 0:00:06]}  Kxf3 {[%clk 0:00:10]} 88. Kh2 {[%clk 0:00:07]}  g4 {[%clk 0:00:10]} 0-1


[Site "https://www.chess.com"]

[Event "Titled Tuesday Blitz February 14 Early 2023"]
[White "Real_taiatai"]
[Black "Girsh, Daniel"]
[BlackFideId "30949190"]
[WhiteElo "2349"]
[BlackElo "2123"]
[Result "0-1"]
[Round "06"]
[TimeControl "180+2"]
[Date "2023.02.15"]
[WhiteClock "0:00:07"]
[BlackClock "0:00:41"]

1. d4 {[%clk 0:03:00]}  Nf6 {[%clk 0:02:59]} 2. c4 {[%clk 0:02:58]}  g6 {[%clk 0:02:59]} 3. Nf3 {[%clk 0:02:55]}  Bg7 {[%clk 0:02:59]} 4. Nc3 {[%clk 0:02:52]}  O-O {[%clk 0:02:59]} 5. e4 {[%clk 0:02:51]}  d6 {[%clk 0:02:59]} 6. Bg5 {[%clk 0:02:49]}  Nbd7 {[%clk 0:02:58]} 7. Bd3 {[%clk 0:02:46]}  c5 {[%clk 0:02:58]} 8. O-O {[%clk 0:02:42]}  cxd4 {[%clk 0:02:53]} 9. Nxd4 {[%clk 0:02:42]}  Nc5 {[%clk 0:02:47]} 10. Bc2 {[%clk 0:02:34]}  Ne6 {[%clk 0:02:48]} 11. Be3 {[%clk 0:02:33]}  Ng4 {[%clk 0:02:46]} 12. Qxg4 {[%clk 0:02:19]}  Nxd4 {[%clk 0:02:42]} 13. Qd1 {[%clk 0:02:19]}  Nxc2 {[%clk 0:02:41]} 14. Qxc2 {[%clk 0:02:20]}  Be6 {[%clk 0:02:42]} 15. Nd5 {[%clk 0:02:05]}  Qa5 {[%clk 0:02:37]} 16. b4 {[%clk 0:01:59]}  Qd8 {[%clk 0:02:36]} 17. Rac1 {[%clk 0:01:57]}  Qd7 {[%clk 0:02:21]} 18. f4 {[%clk 0:01:51]}  f5 {[%clk 0:02:11]} 19. Rfd1 {[%clk 0:01:28]}  fxe4 {[%clk 0:01:34]} 20. Qxe4 {[%clk 0:01:27]}  Kh8 {[%clk 0:01:28]} 21. Nc7 {[%clk 0:01:22]}  Bf5 {[%clk 0:01:24]} 22. Qxb7 {[%clk 0:01:09]}  Rab8 {[%clk 0:01:20]} 23. Qxa7 {[%clk 0:01:06]}  Rxb4 {[%clk 0:01:16]} 24. Nd5 {[%clk 0:00:48]}  Qxa7 {[%clk 0:01:14]} 25. Bxa7 {[%clk 0:00:49]}  Ra4 {[%clk 0:01:12]} 26. Bd4 {[%clk 0:00:47]}  Rxa2 {[%clk 0:01:06]} 27. Bxg7+ {[%clk 0:00:32]}  Kxg7 {[%clk 0:01:06]} 28. Re1 {[%clk 0:00:22]}  e6 {[%clk 0:01:02]} 29. Nc7 {[%clk 0:00:21]}  Kf6 {[%clk 0:01:00]} 30. Nb5 {[%clk 0:00:21]}  Rb8 {[%clk 0:00:53]} 31. Rcd1 {[%clk 0:00:20]}  d5 {[%clk 0:00:52]} 32. Nd4 {[%clk 0:00:14]}  Rbb2 {[%clk 0:00:51]} 33. Nf3 {[%clk 0:00:05]}  Rxg2+ {[%clk 0:00:49]} 34. Kh1 {[%clk 0:00:05]}  Be4 {[%clk 0:00:48]} 35. Rxe4 {[%clk 0:00:05]}  dxe4 {[%clk 0:00:48]} 36. Ng5 {[%clk 0:00:05]}  Rxh2+ {[%clk 0:00:48]} 37. Kg1 {[%clk 0:00:06]}  Rag2+ {[%clk 0:00:47]} 38. Kf1 {[%clk 0:00:07]}  e3 {[%clk 0:00:48]} 39. Ne4+ {[%clk 0:00:07]}  Kf5 {[%clk 0:00:43]} 40. Nd6+ {[%clk 0:00:07]}  Kxf4 {[%clk 0:00:43]} 41. Rd4+ {[%clk 0:00:07]}  Kf3 {[%clk 0:00:41]} 0-1


[Site "https://www.chess.com"]